[Event "Early-Titled-Tuesday-Blitz-November-28-2023"]
[Site "Chess.com"]
[Date "2023.11.28"]
[Round "5"]
[White "TimGrutter03"]
[Black "sofaceindisguise"]
[Result "0-1"]
[WhiteElo "2579"]
[BlackElo "2809"]
[TimeControl "180+1"]
[EndTime "8:57:14 PST"]
[Termination "sofaceindisguise won on time"]

1. b3 {[%clk 0:03:00.9]} 1... a5 {[%clk 0:02:59.4]} 2. a4 {[%clk 0:02:57.8]}
2... d5 {[%clk 0:02:58.1]} 3. Bb2 {[%clk 0:02:57.8]} 3... c6 {[%clk 0:02:57.7]}
4. Nf3 {[%clk 0:02:48]} 4... Bg4 {[%clk 0:02:56.3]} 5. Ne5 {[%clk 0:02:47.1]}
5... Bh5 {[%clk 0:02:55.3]} 6. h4 {[%clk 0:02:38.6]} 6... Nd7 {[%clk 0:02:42.5]}
7. g4 {[%clk 0:02:26.9]} 7... Nxe5 {[%clk 0:02:42]} 8. gxh5 {[%clk 0:02:26.9]}
8... Nd7 {[%clk 0:02:32.1]} 9. d3 {[%clk 0:02:03.9]} 9... h6 {[%clk 0:02:24.9]}
10. Nc3 {[%clk 0:01:58.5]} 10... Ngf6 {[%clk 0:02:24.6]} 11. e4 {[%clk
0:01:57.5]} 11... e6 {[%clk 0:02:21.7]} 12. f4 {[%clk 0:01:48.2]} 12... Bb4
{[%clk 0:02:19.9]} 13. e5 {[%clk 0:01:47.1]} 13... d4 {[%clk 0:02:09.5]} 14.
exf6 {[%clk 0:01:46.9]} 14... dxc3 {[%clk 0:02:09.5]} 15. Bc1 {[%clk 0:01:37.1]}
15... Qxf6 {[%clk 0:02:09.6]} 16. Be3 {[%clk 0:01:29.3]} 16... O-O {[%clk
0:02:07.4]} 17. Qg4 {[%clk 0:01:13.8]} 17... Bc5 {[%clk 0:01:53.9]} 18. Qg3
{[%clk 0:00:52.8]} 18... Bxe3 {[%clk 0:01:53]} 19. Qxe3 {[%clk 0:00:53.7]} 19...
b5 {[%clk 0:01:45.5]} 20. Bg2 {[%clk 0:00:49]} 20... Ra6 {[%clk 0:01:35.3]} 21.
axb5 {[%clk 0:00:43.3]} 21... cxb5 {[%clk 0:01:35.9]} 22. Bb7 {[%clk 0:00:25.2]}
22... Rb6 {[%clk 0:01:31.1]} 23. Be4 {[%clk 0:00:25.6]} 23... a4 {[%clk
0:01:29.3]} 24. bxa4 {[%clk 0:00:25.5]} 24... bxa4 {[%clk 0:01:29.6]} 25. Rxa4
{[%clk 0:00:16.6]} 25... Rb1+ {[%clk 0:01:29.5]} 26. Ke2 {[%clk 0:00:17.3]}
26... Rxh1 {[%clk 0:01:30.3]} 27. Bxh1 {[%clk 0:00:17.8]} 27... Qxh4 {[%clk
0:01:28.2]} 28. Bf3 {[%clk 0:00:13.3]} 28... Nf6 {[%clk 0:01:28.4]} 29. Qf2
{[%clk 0:00:08.2]} 29... Qh3 {[%clk 0:01:27.6]} 30. Rc4 {[%clk 0:00:05.8]} 30...
Nd5 {[%clk 0:01:24.1]} 31. Bxd5 {[%clk 0:00:03.5]} 31... exd5 {[%clk 0:01:24.7]}
32. Rxc3 {[%clk 0:00:03.7]} 32... Qxh5+ {[%clk 0:01:19.3]} 33. Kd2 {[%clk
0:00:04]} 33... d4 {[%clk 0:01:18.4]} 34. Qxd4 {[%clk 0:00:03.4]} 34... Re8
{[%clk 0:01:17.6]} 35. Kc1 {[%clk 0:00:02.7]} 35... Re1+ {[%clk 0:01:10]} 36.
Kb2 {[%clk 0:00:02.8]} 36... Qd1 {[%clk 0:01:09.9]} 37. Qd8+ {[%clk 0:00:01.2]}
37... Kh7 {[%clk 0:01:10.5]} 38. Ra3 {[%clk 0:00:01.3]} 38... Qc1+ {[%clk
0:01:07.1]} 39. Kb3 {[%clk 0:00:01.7]} 39... Qxf4 {[%clk 0:01:05.5]} 40. Qd6
{[%clk 0:00:01.5]} 40... Qxd6 {[%clk 0:01:04.8]} 0-1

[Event "Early-Titled-Tuesday-Blitz-November-28-2023"]
[Site "Chess.com"]
[Date "2023.11.28"]
[Round "5"]
[White "stasOR4ik"]
[Black "Alen_Yeremyann"]
[Result "0-1"]
[WhiteElo "2509"]
[BlackElo "2781"]
[TimeControl "180+1"]
[EndTime "8:57:20 PST"]
[Termination "Alen_Yeremyann won by checkmate"]

1. e4 {[%clk 0:03:00.9]} 1... Nf6 {[%clk 0:02:53.4]} 2. e5 {[%clk 0:02:59.6]}
2... Nd5 {[%clk 0:02:53.7]} 3. Nf3 {[%clk 0:02:58.5]} 3... d6 {[%clk 0:02:54]}
4. d4 {[%clk 0:02:58.3]} 4... Nb6 {[%clk 0:02:54.7]} 5. c3 {[%clk 0:02:54.3]}
5... g6 {[%clk 0:02:53.4]} 6. Bf4 {[%clk 0:02:53.7]} 6... Bg7 {[%clk 0:02:53.2]}
7. Nbd2 {[%clk 0:02:52.2]} 7... O-O {[%clk 0:02:53.7]} 8. h4 {[%clk 0:02:50.2]}
8... Bg4 {[%clk 0:02:53.3]} 9. Be2 {[%clk 0:02:49.5]} 9... Nc6 {[%clk
0:02:53.3]} 10. h5 {[%clk 0:02:20.7]} 10... dxe5 {[%clk 0:02:52.8]} 11. Nxe5
{[%clk 0:02:18.4]} 11... Nxe5 {[%clk 0:02:50.8]} 12. Bxe5 {[%clk 0:02:11.3]}
12... Bxe2 {[%clk 0:02:37.9]} 13. Qxe2 {[%clk 0:02:10.3]} 13... Nd5 {[%clk
0:02:36.6]} 14. Bxg7 {[%clk 0:01:45.3]} 14... Kxg7 {[%clk 0:02:37.5]} 15. O-O-O
{[%clk 0:01:44.9]} 15... Qd6 {[%clk 0:02:12.4]} 16. Rh3 {[%clk 0:01:43.4]} 16...
Nf4 {[%clk 0:02:11.9]} 17. Qg4 {[%clk 0:01:29.4]} 17... Nxh3 {[%clk 0:02:11.6]}
18. Qxh3 {[%clk 0:01:30]} 18... Qf4 {[%clk 0:02:09.1]} 19. Rh1 {[%clk 0:01:26]}
19... g5 {[%clk 0:02:07.5]} 20. h6+ {[%clk 0:01:19.2]} 20... Kh8 {[%clk
0:02:07.7]} 21. g4 {[%clk 0:01:09.1]} 21... f6 {[%clk 0:02:04.9]} 22. Re1 {[%clk
0:01:07.3]} 22... Rfe8 {[%clk 0:01:55.8]} 23. Re6 {[%clk 0:01:04.5]} 23... Qxf2
{[%clk 0:01:54.8]} 24. Ne4 {[%clk 0:01:00.8]} 24... Qe1+ {[%clk 0:01:44.9]} 25.
Kc2 {[%clk 0:00:56.3]} 25... Qe2+ {[%clk 0:01:45.3]} 26. Kc1 {[%clk 0:00:48.6]}
26... Qc4 {[%clk 0:01:45.3]} 27. Nc5 {[%clk 0:00:19.5]} 27... b6 {[%clk
0:01:37]} 28. Qh5 {[%clk 0:00:18.6]} 28... bxc5 {[%clk 0:01:23.2]} 29. Qf7
{[%clk 0:00:17.7]} 29... Rg8 {[%clk 0:01:22.4]} 30. Qxe7 {[%clk 0:00:18]} 30...
Qf1+ {[%clk 0:01:10.2]} 31. Kc2 {[%clk 0:00:18]} 31... cxd4 {[%clk 0:01:05.9]}
32. Rxf6 {[%clk 0:00:15.7]} 32... d3+ {[%clk 0:01:05.1]} 33. Kb3 {[%clk
0:00:13.9]} 33... Rab8+ {[%clk 0:00:53.4]} 34. Ka3 {[%clk 0:00:12.4]} 34... Qe2
{[%clk 0:00:47]} 35. Re6 {[%clk 0:00:05]} 35... Qxb2+ {[%clk 0:00:47]} 36. Ka4
{[%clk 0:00:05]} 36... Qxa2+ {[%clk 0:00:47.8]} 37. Qa3 {[%clk 0:00:03.8]} 37...
Qc4+ {[%clk 0:00:48.1]} 38. Ka5 {[%clk 0:00:03.4]} 38... Qb5# {[%clk 0:00:47.8]}
0-1

[Event "Early-Titled-Tuesday-Blitz-November-28-2023"]
[Site "Chess.com"]
[Date "2023.11.28"]
[Round "5"]
[White "bazar-wokzal"]
[Black "nindjaxx8"]
[Result "1-0"]
[WhiteElo "2626"]
[BlackElo "2458"]
[TimeControl "180+1"]
[EndTime "8:57:22 PST"]
[Termination "bazar-wokzal won on time"]

1. e4 {[%clk 0:03:00.9]} 1... e6 {[%clk 0:02:58.3]} 2. d4 {[%clk 0:03:00.4]}
2... d5 {[%clk 0:02:58.6]} 3. e5 {[%clk 0:03:01]} 3... c5 {[%clk 0:02:58.8]} 4.
c3 {[%clk 0:03:00.8]} 4... Nc6 {[%clk 0:02:59.1]} 5. Nf3 {[%clk 0:03:01.2]} 5...
Qb6 {[%clk 0:02:57.3]} 6. Be2 {[%clk 0:02:59.7]} 6... cxd4 {[%clk 0:02:53.6]} 7.
cxd4 {[%clk 0:02:58.4]} 7... Nge7 {[%clk 0:02:54.5]} 8. Na3 {[%clk 0:02:57.8]}
8... Nf5 {[%clk 0:02:49.2]} 9. Nc2 {[%clk 0:02:57.3]} 9... Bb4+ {[%clk
0:02:49.6]} 10. Kf1 {[%clk 0:02:54.5]} 10... Be7 {[%clk 0:02:46]} 11. h4 {[%clk
0:02:53]} 11... h5 {[%clk 0:02:42.9]} 12. Rb1 {[%clk 0:02:48.7]} 12... a5 {[%clk
0:02:34.4]} 13. b3 {[%clk 0:02:45.2]} 13... Bd7 {[%clk 0:02:31.4]} 14. g3 {[%clk
0:02:44.6]} 14... O-O-O {[%clk 0:02:24.5]} 15. Kg2 {[%clk 0:02:31.6]} 15... Nb4
{[%clk 0:02:16.1]} 16. Ne3 {[%clk 0:02:17.1]} 16... Kb8 {[%clk 0:01:52.7]} 17.
Nxf5 {[%clk 0:02:12.8]} 17... exf5 {[%clk 0:01:51.8]} 18. a3 {[%clk 0:02:09.4]}
18... Nc6 {[%clk 0:01:47.8]} 19. b4 {[%clk 0:02:07]} 19... axb4 {[%clk 0:01:38]}
20. axb4 {[%clk 0:02:06.9]} 20... f4 {[%clk 0:01:29.3]} 21. Bxf4 {[%clk
0:01:54.4]} 21... Bf5 {[%clk 0:01:29.4]} 22. Bd3 {[%clk 0:01:42.4]} 22... Be4
{[%clk 0:01:21.7]} 23. e6+ {[%clk 0:01:23.7]} 23... Bd6 {[%clk 0:01:12.8]} 24.
Bxd6+ {[%clk 0:01:16.3]} 24... Rxd6 {[%clk 0:01:11.6]} 25. exf7 {[%clk
0:01:16.1]} 25... Rf8 {[%clk 0:00:27.6]} 26. Bxe4 {[%clk 0:01:10.3]} 26... dxe4
{[%clk 0:00:28.5]} 27. Ng5 {[%clk 0:01:09]} 27... Nxd4 {[%clk 0:00:26.4]} 28.
Qxh5 {[%clk 0:00:55.9]} 28... Qc6 {[%clk 0:00:05.3]} 29. Rhc1 {[%clk 0:00:54.7]}
29... Qd5 {[%clk 0:00:04.6]} 30. Rc5 {[%clk 0:00:54.5]} 30... Qa2 {[%clk
0:00:04]} 31. Nxe4 {[%clk 0:00:47.6]} 31... Re6 {[%clk 0:00:02.3]} 32. Rbc1
{[%clk 0:00:37]} 1-0

[Event "Early-Titled-Tuesday-Blitz-November-28-2023"]
[Site "Chess.com"]
[Date "2023.11.28"]
[Round "5"]
[White "IljaZaragatski"]
[Black "Cayse"]
[Result "0-1"]
[WhiteElo "2635"]
[BlackElo "2859"]
[TimeControl "180+1"]
[EndTime "8:57:23 PST"]
[Termination "Cayse won on time"]

1. g3 {[%clk 0:03:00.9]} 1... d5 {[%clk 0:02:59.4]} 2. Nf3 {[%clk 0:03:00.4]}
2... c5 {[%clk 0:02:57.6]} 3. Bg2 {[%clk 0:02:59.9]} 3... g6 {[%clk 0:02:57.6]}
4. c4 {[%clk 0:02:56.7]} 4... d4 {[%clk 0:02:57.1]} 5. b4 {[%clk 0:02:55.4]}
5... cxb4 {[%clk 0:02:54.7]} 6. a3 {[%clk 0:02:55.4]} 6... bxa3 {[%clk
0:02:53.3]} 7. Bxa3 {[%clk 0:02:49.1]} 7... Bg7 {[%clk 0:02:53.1]} 8. d3 {[%clk
0:02:49.3]} 8... Nf6 {[%clk 0:02:51.9]} 9. Qa4+ {[%clk 0:02:49.5]} 9... Bd7
{[%clk 0:02:46.6]} 10. Qb3 {[%clk 0:02:47.4]} 10... Bc6 {[%clk 0:02:44.4]} 11.
O-O {[%clk 0:02:43.3]} 11... O-O {[%clk 0:02:44]} 12. Nbd2 {[%clk 0:02:42.5]}
12... Re8 {[%clk 0:02:31.5]} 13. Rfb1 {[%clk 0:02:39]} 13... e5 {[%clk
0:02:30.5]} 14. Ng5 {[%clk 0:02:37.7]} 14... h6 {[%clk 0:02:23.3]} 15. Nge4
{[%clk 0:02:33.6]} 15... Nxe4 {[%clk 0:02:17.6]} 16. Nxe4 {[%clk 0:02:34.5]}
16... b6 {[%clk 0:02:08.5]} 17. c5 {[%clk 0:02:17.2]} 17... bxc5 {[%clk
0:02:03.5]} 18. Nxc5 {[%clk 0:01:42.6]} 18... Bxg2 {[%clk 0:02:01.5]} 19. Kxg2
{[%clk 0:01:43.5]} 19... Nd7 {[%clk 0:01:54.9]} 20. Nb7 {[%clk 0:01:37.3]} 20...
Qf6 {[%clk 0:01:51.9]} 21. Nd6 {[%clk 0:01:34.4]} 21... Reb8 {[%clk 0:01:49.4]}
22. Qd5 {[%clk 0:01:33.5]} 22... Nb6 {[%clk 0:01:47.5]} 23. Qe4 {[%clk
0:01:20.7]} 23... Qe6 {[%clk 0:01:45.8]} 24. Bc5 {[%clk 0:01:03.1]} 24... Nd7
{[%clk 0:01:32.7]} 25. Ba3 {[%clk 0:00:43.2]} 25... Bf8 {[%clk 0:01:27.9]} 26.
Nb7 {[%clk 0:00:30.7]} 26... Rc8 {[%clk 0:00:38.1]} 27. Bxf8 {[%clk 0:00:29.1]}
27... Kxf8 {[%clk 0:00:37.7]} 28. Ra5 {[%clk 0:00:20.7]} 28... a6 {[%clk
0:00:35.7]} 29. Rd5 {[%clk 0:00:13.2]} 29... Nf6 {[%clk 0:00:32.6]} 30. Qxe5
{[%clk 0:00:02]} 30... Qxd5+ {[%clk 0:00:31.8]} 31. Qxd5 {[%clk 0:00:01.6]}
31... Nxd5 {[%clk 0:00:32.7]} 0-1

[Event "Early-Titled-Tuesday-Blitz-November-28-2023"]
[Site "Chess.com"]
[Date "2023.11.28"]
[Round "5"]
[White "lrestevez"]
[Black "AjedrezenMadrid"]
[Result "1-0"]
[WhiteElo "2183"]
[BlackElo "2361"]
[TimeControl "180+1"]
[EndTime "8:57:26 PST"]
[Termination "lrestevez won by resignation"]

1. e4 {[%clk 0:02:56.4]} 1... c5 {[%clk 0:02:57.6]} 2. Nf3 {[%clk 0:02:56.3]}
2... e6 {[%clk 0:02:57.6]} 3. c4 {[%clk 0:02:54.8]} 3... Nc6 {[%clk 0:02:55.9]}
4. Nc3 {[%clk 0:02:55.1]} 4... g5 {[%clk 0:02:54.8]} 5. d4 {[%clk 0:02:54.4]}
5... g4 {[%clk 0:02:54.6]} 6. d5 {[%clk 0:02:51.8]} 6... gxf3 {[%clk 0:02:53.9]}
7. dxc6 {[%clk 0:02:51.3]} 7... fxg2 {[%clk 0:02:53.5]} 8. cxd7+ {[%clk
0:02:51.1]} 8... Qxd7 {[%clk 0:02:53.1]} 9. Qxd7+ {[%clk 0:02:49.8]} 9... Bxd7
{[%clk 0:02:53.1]} 10. Bxg2 {[%clk 0:02:50.3]} 10... Bg7 {[%clk 0:02:53]} 11.
Bd2 {[%clk 0:02:49.2]} 11... Ne7 {[%clk 0:02:52.5]} 12. O-O-O {[%clk 0:02:49.1]}
12... Nc6 {[%clk 0:02:52.1]} 13. Nb5 {[%clk 0:02:45.3]} 13... Ke7 {[%clk
0:02:50.8]} 14. Bg5+ {[%clk 0:02:43.6]} 14... f6 {[%clk 0:02:48.5]} 15. Bf4
{[%clk 0:02:43.8]} 15... e5 {[%clk 0:02:42.6]} 16. Be3 {[%clk 0:02:44]} 16...
Nd4 {[%clk 0:02:41.8]} 17. Nc7 {[%clk 0:02:34.4]} 17... Rac8 {[%clk 0:02:37]}
18. Nd5+ {[%clk 0:02:34.6]} 18... Kf7 {[%clk 0:02:36]} 19. Kb1 {[%clk
0:02:24.8]} 19... h5 {[%clk 0:02:25.3]} 20. f4 {[%clk 0:02:24.1]} 20... Bg4
{[%clk 0:02:20.1]} 21. Rde1 {[%clk 0:02:18.5]} 21... h4 {[%clk 0:02:07.8]} 22.
fxe5 {[%clk 0:02:17.2]} 22... fxe5 {[%clk 0:02:07.7]} 23. Rhf1+ {[%clk
0:02:16.4]} 23... Ke6 {[%clk 0:02:07.7]} 24. Bxd4 {[%clk 0:01:57.2]} 24... cxd4
{[%clk 0:02:04.8]} 25. b3 {[%clk 0:01:57.1]} 25... Rcf8 {[%clk 0:01:56.5]} 26.
Kc2 {[%clk 0:01:43.9]} 26... h3 {[%clk 0:01:51.6]} 27. Bh1 {[%clk 0:01:43.3]}
27... Be2 {[%clk 0:01:47.3]} 28. Rxf8 {[%clk 0:01:22.8]} 28... d3+ {[%clk
0:01:47.4]} 29. Kc3 {[%clk 0:01:17.2]} 29... Rxf8 {[%clk 0:01:45.7]} 30. Nb4
{[%clk 0:01:12.7]} 30... Rf2 {[%clk 0:01:28.3]} 31. Nxd3 {[%clk 0:01:10.2]}
31... Rxh2 {[%clk 0:01:26.7]} 32. Nc5+ {[%clk 0:01:03.6]} 32... Ke7 {[%clk
0:01:22]} 33. Nxb7 {[%clk 0:01:03.5]} 33... Bf6 {[%clk 0:01:17.9]} 34. c5 {[%clk
0:01:02]} 34... Bh4 {[%clk 0:01:14.7]} 35. Rg1 {[%clk 0:00:59]} 35... Bf2 {[%clk
0:01:10.5]} 36. Rc1 {[%clk 0:00:58.2]} 36... Bd4+ {[%clk 0:01:08.4]} 37. Kb4
{[%clk 0:00:57.5]} 37... Ba6 {[%clk 0:01:05.8]} 38. c6 {[%clk 0:00:53.5]} 38...
Rg2 {[%clk 0:01:06.2]} 39. Bxg2 {[%clk 0:00:52.6]} 39... hxg2 {[%clk 0:01:06.1]}
40. Nc5 {[%clk 0:00:48]} 40... Bf1 {[%clk 0:01:05.6]} 41. c7 {[%clk 0:00:45.2]}
41... a5+ {[%clk 0:00:52.3]} 42. Kxa5 {[%clk 0:00:39.4]} 42... g1=Q {[%clk
0:00:48.7]} 43. c8=Q {[%clk 0:00:33.9]} 1-0

[Event "Early-Titled-Tuesday-Blitz-November-28-2023"]
[Site "Chess.com"]
[Date "2023.11.28"]
[Round "5"]
[White "Fonsofan"]
[Black "Rud_Makarian"]
[Result "0-1"]
[WhiteElo "2739"]
[BlackElo "2988"]
[TimeControl "180+1"]
[EndTime "8:57:29 PST"]
[Termination "Rud_Makarian won by resignation"]

1. e4 {[%clk 0:02:52]} 1... c5 {[%clk 0:02:59.5]} 2. Nf3 {[%clk 0:02:50.6]} 2...
d6 {[%clk 0:02:59.2]} 3. Bb5+ {[%clk 0:02:50.2]} 3... Nd7 {[%clk 0:02:58.7]} 4.
O-O {[%clk 0:02:45.1]} 4... a6 {[%clk 0:02:58.3]} 5. Bxd7+ {[%clk 0:02:41.4]}
5... Bxd7 {[%clk 0:02:58.9]} 6. d4 {[%clk 0:02:40.7]} 6... cxd4 {[%clk
0:02:59.5]} 7. Qxd4 {[%clk 0:02:41.3]} 7... Rc8 {[%clk 0:02:59.2]} 8. c4 {[%clk
0:02:40.7]} 8... b5 {[%clk 0:02:44.9]} 9. cxb5 {[%clk 0:02:32.9]} 9... axb5
{[%clk 0:02:44.8]} 10. Nc3 {[%clk 0:02:30]} 10... e5 {[%clk 0:02:23.1]} 11. Qd3
{[%clk 0:02:14]} 11... b4 {[%clk 0:01:41.5]} 12. Nd5 {[%clk 0:02:12.4]} 12...
Qa5 {[%clk 0:01:41.9]} 13. Rd1 {[%clk 0:02:10]} 13... Nf6 {[%clk 0:01:41.9]} 14.
Nxf6+ {[%clk 0:02:05.7]} 14... gxf6 {[%clk 0:01:42]} 15. Nh4 {[%clk 0:02:05.9]}
15... Be7 {[%clk 0:01:38]} 16. Be3 {[%clk 0:01:53.9]} 16... Qb5 {[%clk
0:01:35.7]} 17. Qd2 {[%clk 0:01:33.2]} 17... O-O {[%clk 0:01:29.3]} 18. Rac1
{[%clk 0:01:21.6]} 18... Rxc1 {[%clk 0:01:23.1]} 19. Rxc1 {[%clk 0:01:22.5]}
19... Rc8 {[%clk 0:01:23.5]} 20. Rxc8+ {[%clk 0:01:16.5]} 20... Bxc8 {[%clk
0:01:24.1]} 21. Bh6 {[%clk 0:01:00.8]} 21... Bf8 {[%clk 0:00:53]} 22. Bxf8
{[%clk 0:00:59.5]} 22... Kxf8 {[%clk 0:00:53.8]} 23. Qxd6+ {[%clk 0:01:00]}
23... Kg7 {[%clk 0:00:54.7]} 24. h3 {[%clk 0:00:20]} 24... Qc4 {[%clk
0:00:54.1]} 25. f3 {[%clk 0:00:09.1]} 25... Qc1+ {[%clk 0:00:47.6]} 26. Kh2
{[%clk 0:00:08.7]} 26... Qxb2 {[%clk 0:00:45]} 27. Qc7 {[%clk 0:00:04.7]} 27...
Be6 {[%clk 0:00:43.1]} 28. Qc5 {[%clk 0:00:05.4]} 28... Qc3 {[%clk 0:00:36.3]}
29. Qd6 {[%clk 0:00:05.1]} 29... Qd4 {[%clk 0:00:30.2]} 30. Qxd4 {[%clk
0:00:03.3]} 30... exd4 {[%clk 0:00:30.6]} 31. Nf5+ {[%clk 0:00:03.6]} 31... Bxf5
{[%clk 0:00:27.4]} 32. exf5 {[%clk 0:00:04.5]} 0-1

[Event "Early-Titled-Tuesday-Blitz-November-28-2023"]
[Site "Chess.com"]
[Date "2023.11.28"]
[Round "5"]
[White "Good_Knight_Kiss"]
[Black "Statham_l3"]
[Result "1-0"]
[WhiteElo "2339"]
[BlackElo "2567"]
[TimeControl "180+1"]
[EndTime "8:57:29 PST"]
[Termination "Good_Knight_Kiss won on time"]

1. e4 {[%clk 0:02:58.9]} 1... a6 {[%clk 0:02:58.8]} 2. d4 {[%clk 0:02:58.2]}
2... b5 {[%clk 0:02:58.4]} 3. Nf3 {[%clk 0:02:52.9]} 3... Bb7 {[%clk 0:02:57.5]}
4. Bd3 {[%clk 0:02:51.2]} 4... e6 {[%clk 0:02:57.7]} 5. O-O {[%clk 0:02:39.9]}
5... d5 {[%clk 0:02:57.5]} 6. e5 {[%clk 0:02:34.9]} 6... c5 {[%clk 0:02:53.9]}
7. c3 {[%clk 0:02:35.3]} 7... Nc6 {[%clk 0:02:50.8]} 8. Be3 {[%clk 0:02:22.3]}
8... c4 {[%clk 0:02:47.8]} 9. Bc2 {[%clk 0:02:21.8]} 9... a5 {[%clk 0:02:39.3]}
10. Nbd2 {[%clk 0:02:19.5]} 10... Nge7 {[%clk 0:02:27.1]} 11. Re1 {[%clk
0:02:14.9]} 11... h6 {[%clk 0:02:10.6]} 12. Nf1 {[%clk 0:02:13.3]} 12... Nf5
{[%clk 0:01:53]} 13. Ng3 {[%clk 0:02:01.3]} 13... g6 {[%clk 0:01:45.2]} 14. Qd2
{[%clk 0:01:49.7]} 14... Nh4 {[%clk 0:01:34.2]} 15. Nxh4 {[%clk 0:01:43.8]}
15... Qxh4 {[%clk 0:01:34.7]} 16. f4 {[%clk 0:01:30]} 16... h5 {[%clk
0:01:10.1]} 17. f5 {[%clk 0:01:23.3]} 17... Be7 {[%clk 0:00:42]} 18. fxg6 {[%clk
0:01:10.8]} 18... fxg6 {[%clk 0:00:41.4]} 19. Bxg6+ {[%clk 0:01:10]} 19... Kd7
{[%clk 0:00:41.3]} 20. Rf1 {[%clk 0:01:02.4]} 20... Rhg8 {[%clk 0:00:38.5]} 21.
Rf4 {[%clk 0:00:57.6]} 21... Qg5 {[%clk 0:00:29.9]} 22. Rf6 {[%clk 0:00:48.1]}
22... Qg4 {[%clk 0:00:17.4]} 23. Bxh5 {[%clk 0:00:43.1]} 23... Qh4 {[%clk
0:00:17.6]} 24. Rh6 {[%clk 0:00:30.9]} 24... Kc7 {[%clk 0:00:10.5]} 25. Bf7
{[%clk 0:00:28]} 25... Qg4 {[%clk 0:00:09.3]} 26. Bxe6 {[%clk 0:00:25.7]} 26...
Qg7 {[%clk 0:00:00.4]} 27. Nf5 {[%clk 0:00:24.6]} 1-0

[Event "Early-Titled-Tuesday-Blitz-November-28-2023"]
[Site "Chess.com"]
[Date "2023.11.28"]
[Round "5"]
[White "Lady_Nika"]
[Black "KaydenTroffChess"]
[Result "0-1"]
[WhiteElo "2576"]
[BlackElo "2784"]
[TimeControl "180+1"]
[EndTime "8:57:30 PST"]
[Termination "KaydenTroffChess won on time"]

1. e4 {[%clk 0:03:00.9]} 1... c5 {[%clk 0:02:59.7]} 2. Nc3 {[%clk 0:02:59.3]}
2... g6 {[%clk 0:02:59.1]} 3. g3 {[%clk 0:02:58.6]} 3... Bg7 {[%clk 0:02:59.2]}
4. Bg2 {[%clk 0:02:58.7]} 4... Nc6 {[%clk 0:02:55.9]} 5. d3 {[%clk 0:02:58.2]}
5... Rb8 {[%clk 0:02:49.7]} 6. f4 {[%clk 0:02:57.2]} 6... b5 {[%clk 0:02:49.9]}
7. Nf3 {[%clk 0:02:55.9]} 7... b4 {[%clk 0:02:50.1]} 8. Ne2 {[%clk 0:02:55.2]}
8... e6 {[%clk 0:02:47]} 9. O-O {[%clk 0:02:54.7]} 9... d5 {[%clk 0:02:45.9]}
10. Rb1 {[%clk 0:02:54.5]} 10... Nge7 {[%clk 0:02:45.6]} 11. Be3 {[%clk
0:02:53.9]} 11... Qa5 {[%clk 0:02:44.6]} 12. Nc1 {[%clk 0:02:52]} 12... c4
{[%clk 0:02:41.6]} 13. dxc4 {[%clk 0:02:47.1]} 13... dxc4 {[%clk 0:02:42.5]} 14.
Nd2 {[%clk 0:02:28.5]} 14... Ba6 {[%clk 0:02:38.8]} 15. Re1 {[%clk 0:02:25.7]}
15... O-O {[%clk 0:02:36.7]} 16. Bf1 {[%clk 0:02:24.9]} 16... Rfd8 {[%clk
0:02:29.2]} 17. Qg4 {[%clk 0:02:21.4]} 17... Nd4 {[%clk 0:02:13.2]} 18. Nxc4
{[%clk 0:02:11.6]} 18... Bxc4 {[%clk 0:02:10.9]} 19. Bxc4 {[%clk 0:02:10.5]}
19... Nxc2 {[%clk 0:02:11.1]} 20. Nb3 {[%clk 0:01:29.1]} 20... Qc7 {[%clk
0:01:57]} 21. Bf1 {[%clk 0:00:54.5]} 21... Nxe1 {[%clk 0:01:49.8]} 22. Rxe1
{[%clk 0:00:54]} 22... Bxb2 {[%clk 0:01:43]} 23. h4 {[%clk 0:00:53.3]} 23... a5
{[%clk 0:01:20.8]} 24. Nc5 {[%clk 0:00:47]} 24... Bd4 {[%clk 0:01:14.9]} 25.
Bxd4 {[%clk 0:00:44.6]} 25... Rxd4 {[%clk 0:01:15.8]} 26. Nb3 {[%clk 0:00:08.9]}
26... Qc3 {[%clk 0:01:00.8]} 27. Re2 {[%clk 0:00:02.2]} 27... Rd3 {[%clk
0:00:59.6]} 28. Kh2 {[%clk 0:00:01.5]} 28... a4 {[%clk 0:00:56.3]} 29. Na5
{[%clk 0:00:01.9]} 29... b3 {[%clk 0:00:54.7]} 30. axb3 {[%clk 0:00:01.7]} 30...
Qxa5 {[%clk 0:00:54.8]} 31. h5 {[%clk 0:00:02.6]} 31... axb3 {[%clk 0:00:52.7]}
32. h6 {[%clk 0:00:02.3]} 32... Qh5+ {[%clk 0:00:52.2]} 33. Qxh5 {[%clk
0:00:02.5]} 33... gxh5 {[%clk 0:00:53.1]} 34. Rg2 {[%clk 0:00:01.9]} 34... Rc3
{[%clk 0:00:52.6]} 35. g4 {[%clk 0:00:02.1]} 35... hxg4 {[%clk 0:00:51.5]} 36.
Rxg4+ {[%clk 0:00:02.3]} 36... Ng6 {[%clk 0:00:52.2]} 37. f5 {[%clk 0:00:02]}
37... b2 {[%clk 0:00:52.2]} 38. fxg6 {[%clk 0:00:02.5]} 38... hxg6 {[%clk
0:00:53.1]} 39. h7+ {[%clk 0:00:02.5]} 39... Kxh7 {[%clk 0:00:53]} 40. Rh4+
{[%clk 0:00:02.9]} 40... Kg7 {[%clk 0:00:52.6]} 0-1

[Event "Early-Titled-Tuesday-Blitz-November-28-2023"]
[Site "Chess.com"]
[Date "2023.11.28"]
[Round "5"]
[White "AC_20"]
[Black "C_K_G"]
[Result "0-1"]
[WhiteElo "2356"]
[BlackElo "2176"]
[TimeControl "180+1"]
[EndTime "8:57:30 PST"]
[Termination "C_K_G won on time"]

1. e4 {[%clk 0:02:32.6]} 1... c5 {[%clk 0:02:59.7]} 2. Nf3 {[%clk 0:02:33]} 2...
d6 {[%clk 0:03:00.1]} 3. d4 {[%clk 0:02:33.4]} 3... cxd4 {[%clk 0:03:00.5]} 4.
Nxd4 {[%clk 0:02:34]} 4... Nf6 {[%clk 0:03:01]} 5. Nc3 {[%clk 0:02:34.7]} 5...
a6 {[%clk 0:03:01.4]} 6. Be3 {[%clk 0:02:35.1]} 6... e5 {[%clk 0:03:01.8]} 7.
Nb3 {[%clk 0:02:35.5]} 7... Be6 {[%clk 0:03:02.2]} 8. f3 {[%clk 0:02:36]} 8...
Be7 {[%clk 0:03:02.5]} 9. Be2 {[%clk 0:02:36.6]} 9... Nbd7 {[%clk 0:03:02.8]}
10. Qd2 {[%clk 0:02:37.3]} 10... O-O {[%clk 0:03:02.9]} 11. O-O-O {[%clk
0:02:38]} 11... b5 {[%clk 0:03:03.2]} 12. g4 {[%clk 0:02:38.8]} 12... Qc7 {[%clk
0:03:03.4]} 13. g5 {[%clk 0:02:36.1]} 13... Nh5 {[%clk 0:03:03.1]} 14. Kb1
{[%clk 0:02:36.5]} 14... Nb6 {[%clk 0:03:03.2]} 15. Na5 {[%clk 0:02:35.9]} 15...
Nc4 {[%clk 0:02:54.1]} 16. Bxc4 {[%clk 0:02:20.5]} 16... bxc4 {[%clk 0:02:55]}
17. Nd5 {[%clk 0:02:21.2]} 17... Bxd5 {[%clk 0:02:36.9]} 18. Qxd5 {[%clk
0:02:22.1]} 18... c3 {[%clk 0:02:05.3]} 19. b3 {[%clk 0:02:21.5]} 19... Rfc8
{[%clk 0:01:54]} 20. Nc4 {[%clk 0:02:20.8]} 20... Nf4 {[%clk 0:01:40.3]} 21.
Bxf4 {[%clk 0:02:19]} 21... exf4 {[%clk 0:01:39.9]} 22. h4 {[%clk 0:02:19.3]}
22... Rab8 {[%clk 0:01:37.7]} 23. Ka1 {[%clk 0:02:19.3]} 23... Rb5 {[%clk
0:01:34.9]} 24. Qd4 {[%clk 0:02:17.5]} 24... d5 {[%clk 0:01:16.5]} 25. exd5
{[%clk 0:02:11.4]} 25... Bd6 {[%clk 0:00:59.4]} 26. Rhe1 {[%clk 0:01:55.9]}
26... Rc5 {[%clk 0:00:48.7]} 27. Qxc3 {[%clk 0:01:51.6]} 27... g6 {[%clk
0:00:39.6]} 28. h5 {[%clk 0:01:48.6]} 28... gxh5 {[%clk 0:00:36.9]} 29. Qf6
{[%clk 0:01:34.3]} 29... Rxc4 {[%clk 0:00:24.9]} 0-1